bitfinex-derivatives/quotes_BTCF0:USTF0_20210406
["timestamp","ask_amount","ask_price","bid_price","bid_amount"]
[1617715531169,0.7012601,58623.0,58601.0,0.2]
[1617715531368,0.50091615,58607.0,58602.0,0.27]
[1617715532772,0.50091615,58607.0,58606.0,2.58785655]
[1617715533371,0.50091615,58607.0,58606.0,2.70913655]
[1617715533573,0.50090678,58608.0,58606.0,2.97913655]
[1617715534074,0.34879475,58616.0,58606.0,2.97913655]
[1617715534075,0.50089869,58609.0,58606.0,2.97913655]
[1617715534472,0.34879475,58616.0,58606.0,2.97913655]
[1617715534473,0.50049648,58611.0,58606.0,2.97913655]
[1617715536077,0.50049099,58612.0,58606.0,2.97913655]
[1617715536574,0.5004995,58611.0,58606.0,0.49853655]
[1617715536778,0.5004995,58611.0,58606.0,0.37725655]
[1617715537179,0.5004995,58611.0,58606.0,0.49681655]
[1617715538080,0.5004995,58611.0,58606.0,1.99681655]
[1617715538375,0.56054405,58620.0,58606.0,1.99681655]
[1617715538376,0.50049163,58612.0,58609.0,1.0]
[1617715538783,0.96606347,58635.0,58609.0,1.27]
[1617715538784,0.50044308,58617.0,58609.0,1.27]
[1617715539177,0.08527427,58635.0,58609.0,1.27]
[1617715539178,0.85874501,58619.0,58609.0,0.27]
[1617715539377,0.85874501,58619.0,58609.0,3.1268]
[1617715539578,0.76890004,58610.0,58608.0,0.27]
[1617715539777,0.76890004,58610.0,58609.0,0.27]
[1617715539978,0.76890004,58610.0,58609.0,3.0925]
[1617715540180,0.4686,58610.0,58609.0,2.8225]
[1617715540379,0.4686,58610.0,58609.0,0.27]
[1617715540583,0.76950667,58610.0,58609.0,0.27]
[1617715540781,0.76950667,58610.0,58608.0,0.27]
[1617715540982,3.3382,58609.0,58606.0,0.10725655]
[1617715541182,0.76950667,58610.0,58606.0,0.10725655]
[1617715541385,0.59215104,58608.0,58607.0,0.27]
[1617715541583,0.59215104,58608.0,58606.0,0.10725655]
[1617715541783,0.59215104,58608.0,58607.0,3.0001]
[1617715541983,0.30092407,58608.0,58607.0,3.2701]
[1617715542485,0.5431376,58608.0,58607.0,3.2701]
[1617715543087,0.30092407,58608.0,58607.0,3.2701]
[1617715543384,0.54313794,58608.0,58607.0,3.2701]
[1617715543885,0.30092407,58608.0,58607.0,3.2701]
[1617715544385,0.6620247,58608.0,58607.0,3.2701]
[1617715546989,0.6620247,58608.0,58607.0,0.27]
[1617715547691,0.6620247,58608.0,58607.0,3.3609]
[1617715551998,1.10452976,58608.0,58607.0,3.3609]
[1617715552497,1.60737513,58608.0,58607.0,3.3609]
[1617715552897,1.10452976,58608.0,58607.0,3.3609]
[1617715553398,1.60736315,58608.0,58607.0,3.3609]
[1617715553798,1.10452976,58608.0,58607.0,3.3609]
[1617715554097,1.10452976,58608.0,58607.0,4.3609]
[1617715554497,1.10452976,58608.0,58607.0,5.8609]
[1617715555099,0.80360569,58608.0,58607.0,5.8609]
[1617715555601,1.10532367,58608.0,58607.0,5.8609]
[1617715556299,0.80360569,58608.0,58607.0,4.8609]
[1617715556499,1.34752193,58608.0,58607.0,4.8609]
[1617715556700,1.34752193,58608.0,58607.0,3.3609]
[1617715556900,1.10533319,58608.0,58607.0,3.3609]
[1617715558503,1.10533319,58608.0,58607.0,5.8609]
[1617715558802,1.31552501,58608.0,58607.0,5.8609]
[1617715559103,1.07333319,58608.0,58607.0,5.8609]
[1617715559902,0.99203319,58608.0,58607.0,4.8609]
[1617715560202,0.99203319,58608.0,58607.0,5.8609]
[1617715560203,1.23213493,58608.0,58607.0,5.8609]
[1617715560402,1.23213493,58608.0,58607.0,4.8609]
[1617715560604,1.23213493,58608.0,58607.0,3.3609]
[1617715561104,0.99203319,58608.0,58607.0,3.3609]
[1617715561403,1.23203643,58608.0,58607.0,3.3609]
[1617715561905,0.99203319,58608.0,58607.0,3.3609]
[1617715562304,0.99203319,58608.0,58607.0,0.27]
[1617715562506,4.85682215,58608.0,58607.0,0.27]
[1617715563005,5.42828708,58608.0,58607.0,0.27]
[1617715563705,5.99137293,58608.0,58607.0,0.27]
[1617715565008,5.99137293,58608.0,58607.0,0.26899062]
[1617715565207,6.99137293,58608.0,58607.0,0.26899062]
[1617715565608,7.46749683,58608.0,58607.0,0.26899062]
[1617715568014,6.46749683,58608.0,58607.0,0.26899062]
[1617715568619,5.99137293,58608.0,58607.0,0.26899062]
[1617715569919,6.4691338,58608.0,58607.0,0.26899062]
[1617715570820,7.17324009,58608.0,58607.0,0.26899062]
[1617715571020,8.17324009,58608.0,58607.0,0.26899062]
[1617715572220,8.37324009,58608.0,58607.0,0.26899062]
[1617715572419,9.87324009,58608.0,58607.0,0.26899062]
[1617715572621,10.75906078,58608.0,58607.0,0.26899062]
[1617715573026,9.25906078,58608.0,58607.0,0.26899062]
[1617715575824,9.25906078,58608.0,58607.0,0.26798105]
[1617715576125,7.37324009,58608.0,58607.0,0.26798105]
[1617715576324,8.37324009,58608.0,58607.0,0.26798105]
[1617715576925,9.25783273,58608.0,58607.0,0.26798105]
[1617715577527,10.75783273,58608.0,58607.0,0.26798105]
[1617715582032,9.25783273,58608.0,58607.0,0.26798105]
[1617715582532,8.25783273,58608.0,58607.0,0.26798105]
[1617715582931,9.25783273,58608.0,58607.0,0.26798105]
[1617715583132,8.78007186,58608.0,58607.0,0.26798105]
[1617715583632,9.25567716,58608.0,58607.0,0.26798105]
[1617715583832,9.39896716,58608.0,58607.0,0.26798105]
[1617715584033,8.51437452,58608.0,58607.0,0.26798105]
[1617715585133,9.39862121,58608.0,58607.0,0.26798105]
[1617715586940,9.39862121,58608.0,58607.0,0.26697146]
[1617715587138,8.51437452,58608.0,58607.0,0.26697146]
[1617715587336,8.37108452,58608.0,58607.0,0.26697146]
[1617715587938,8.48342452,58608.0,58607.0,0.26697146]
[1617715588938,9.36702216,58608.0,58607.0,0.26697146]
[1617715591840,8.36702216,58608.0,58607.0,0.26697146]
[1617715592041,9.36702216,58608.0,58607.0,0.26697146]
[1617715594346,8.36702216,58608.0,58607.0,0.26697146]
[1617715594543,9.36702216,58608.0,58607.0,0.26697146]
[1617715594744,8.48342452,58608.0,58607.0,0.26697146]
[1617715594946,8.37108452,58608.0,58607.0,0.26697146]
[1617715595145,7.37108452,58608.0,58607.0,0.26697146]
[1617715595345,8.17108452,58608.0,58607.0,0.26697146]
[1617715595747,7.69547922,58608.0,58607.0,0.26697146]
[1617715596148,8.18574204,58608.0,58607.0,0.26697146]
[1617715597049,7.48163575,58608.0,58607.0,0.26697146]
[1617715597249,7.48163575,58608.0,58607.0,0.37422801]
[1617715598451,7.48163575,58608.0,58607.0,0.37321851]
[1617715598652,8.18413695,58608.0,58607.0,0.37321851]
[1617715599253,8.18413695,58608.0,58607.0,0.26596196]
[1617715601157,9.06767333,58608.0,58607.0,0.26596196]
[1617715601558,8.57741051,58608.0,58607.0,0.26596196]
[1617715602258,9.05309764,58608.0,58607.0,0.26596196]
[1617715605160,9.05309764,58608.0,58607.0,0.31656196]
[1617715605362,9.05309764,58608.0,58607.0,0.26596196]
[1617715606362,10.75309764,58608.0,58607.0,0.26596196]
[1617715608667,10.75309764,58608.0,58607.0,0.26495234]
[1617715609068,9.86956126,58608.0,58607.0,0.26495234]
[1617715612677,9.97599126,58608.0,58607.0,0.26495234]
[1617715612878,9.77599126,58608.0,58607.0,0.26495234]
[1617715613578,10.65989727,58608.0,58607.0,0.26495234]
[1617715614777,9.05346727,58608.0,58607.0,0.26495234]
[1617715615579,8.16956126,58608.0,58607.0,0.26495234]
[1617715618080,9.0555533,58608.0,58607.0,0.26495234]
[1617715618483,8.57986617,58608.0,58607.0,0.26495234]
[1617715618982,9.04670851,58608.0,58607.0,0.26394277]
[1617715619683,10.54670851,58608.0,58607.0,0.26394277]
[1617715623490,11.55367118,58608.0,58607.0,0.26394277]
[1617715624191,11.75367118,58608.0,58607.0,0.26394277]
[1617715626192,11.75367118,58608.0,58607.0,0.21346047]
[1617715629396,13.39157118,58608.0,58573.0,0.30142334]
[1617715629596,3.1482,58579.0,58573.0,0.30142334]
[1617715629796,3.28779,58579.0,58572.0,0.30204073]
[1617715629996,3.28779,58579.0,58574.0,0.27]
[1617715630297,1.61430187,58574.0,58571.0,0.30205374]
[1617715630498,1.61430187,58574.0,58573.0,0.27]
[1617715630699,2.17946872,58575.0,58573.0,0.27]
[1617715630900,2.17946872,58575.0,58567.0,0.30227646]
[1617715631198,2.17946872,58575.0,58560.0,0.1281]
[1617715631199,2.17947453,58574.0,58568.0,0.27]
[1617715631399,3.17947453,58574.0,58573.0,0.10725655]
[1617715631601,1.59391292,58574.0,58573.0,0.10725655]
[1617715631999,3.42185903,58574.0,58573.0,0.10725655]
[1617715632198,3.42185903,58574.0,58573.0,0.37725655]
[1617715633502,3.52911558,58574.0,58573.0,0.37725655]
[1617715637106,2.52911558,58574.0,58573.0,0.37725655]
[1617715637306,3.52911558,58574.0,58573.0,0.37725655]
[1617715639007,3.52911558,58574.0,58573.0,3.94475655]
[1617715640410,3.52911558,58574.0,58573.0,0.37725655]
[1617715641209,4.3932796,58574.0,58573.0,0.37725655]
[1617715641512,3.89268144,58574.0,58573.0,0.37725655]
[1617715642014,4.39327604,58574.0,58573.0,0.37725655]
[1617715643315,4.39327604,58574.0,58573.0,0.37624656]
[1617715645920,4.28601949,58574.0,58573.0,0.37624656]
[1617715646120,3.28601949,58574.0,58573.0,3.82474656]
[1617715646322,1.85683599,58574.0,58573.0,3.82474656]
[1617715646630,0.24236917,58574.0,58573.0,3.82474656]
[1617715646830,2.21274587,58574.0,58573.0,3.82474656]
[1617715647228,1.60909172,58574.0,58573.0,3.82474656]
[1617715647924,1.85146266,58574.0,58573.0,3.82474656]
[1617715648323,2.85146266,58574.0,58573.0,3.82474656]
[1617715648525,2.60909172,58574.0,58573.0,3.82474656]
[1617715648725,1.60909172,58574.0,58573.0,3.82474656]
[1617715648926,1.85146339,58574.0,58573.0,3.82474656]
[1617715649425,1.60909172,58574.0,58573.0,3.82474656]
[1617715650327,1.85146222,58574.0,58573.0,3.93129656]
[1617715650727,1.60909172,58574.0,58573.0,3.93129656]
[1617715650927,1.60909172,58574.0,58573.0,4.13129656]
[1617715651128,1.34863232,58574.0,58573.0,4.13129656]
[1617715651537,1.10627569,58574.0,58573.0,4.13129656]
[1617715651928,1.10627569,58574.0,58573.0,0.68279656]
[1617715653031,1.10627569,58574.0,58573.0,0.57624656]
[1617715653433,1.10627569,58574.0,58573.0,0.37624656]
[1617715654433,1.75323933,58574.0,58573.0,3.28194656]
[1617715654833,1.9956079,58574.0,58573.0,3.28194656]
[1617715656537,2.9956079,58574.0,58573.0,3.28194656]
[1617715656737,1.14447,58574.0,58573.0,3.28194656]
[1617715657138,2.7525769,58574.0,58573.0,3.28194656]
[1617715657839,1.7525769,58574.0,58573.0,3.28194656]
[1617715658940,1.99494602,58574.0,58573.0,3.28194656]
[1617715659742,1.99494602,58574.0,58573.0,0.37624656]
[1617715659942,6.48734602,58574.0,58573.0,0.37624656]
[1617715660942,7.91086306,58574.0,58573.0,0.37624656]
[1617715664245,9.41086306,58574.0,58573.0,0.27]
[1617715664646,0.00101005,58569.0,58561.0,0.27]
[1617715664847,0.2,58573.0,58561.0,0.27]
[1617715665047,1.5,58572.0,58550.0,0.30162537]
[1617715665249,1.5,58572.0,58546.0,0.30164406]
[1617715665547,0.6695112,58563.0,58562.0,0.27]
[1617715665846,0.6695112,58563.0,58560.0,0.10725655]
[1617715666048,2.51847372,58563.0,58560.0,0.10725655]
[1617715666247,2.51847372,58563.0,58561.0,0.27]
[1617715666449,0.71062447,58562.0,58561.0,0.27]
[1617715666749,2.92308543,58562.0,58561.0,0.27]
[1617715667148,3.55943384,58562.0,58561.0,0.27]
[1617715668051,2.99721937,58562.0,58561.0,0.27]
[1617715668649,3.55948944,58562.0,58561.0,0.27]
[1617715669050,7.23088944,58562.0,58561.0,0.27]
[1617715669352,6.66861937,58562.0,58561.0,0.27]
[1617715669751,8.0905761,58562.0,58561.0,0.27]
[1617715672456,7.52838211,58562.0,58561.0,0.27]
[1617715673357,6.52838211,58562.0,58561.0,0.27]
[1617715673556,7.52838211,58562.0,58561.0,0.27]
[1617715673957,7.03227568,58562.0,58561.0,0.27]
[1617715674557,7.53050645,58562.0,58561.0,0.27]
[1617715675561,8.03050645,58562.0,58561.0,0.27]
[1617715675760,9.59224004,58562.0,58561.0,0.27]
[1617715675961,9.59224004,58562.0,58553.0,0.10725655]
[1617715676360,9.59224004,58562.0,58554.0,0.27]
[1617715676559,8.59224004,58562.0,58553.0,0.10725655]
[1617715676860,1.60507326,58554.0,58553.0,0.10725655]
[1617715677060,2.60507326,58554.0,58553.0,0.10725655]
[1617715677262,2.60507326,58554.0,58553.0,0.37725655]
[1617715677561,2.84752504,58554.0,58553.0,0.37725655]
[1617715677760,2.95478159,58554.0,58553.0,0.37725655]
[1617715678363,7.80478159,58554.0,58553.0,0.27]
[1617715678763,7.80478159,58554.0,58545.0,0.27]
[1617715678963,9.23077235,58554.0,58545.0,0.27]
[1617715679162,9.23077235,58554.0,58553.0,0.27]
[1617715679363,9.43077235,58554.0,58545.0,0.27]
[1617715679563,1.60342382,58546.0,58545.0,0.27]
[1617715679762,1.83069037,58546.0,58539.0,0.10725655]
[1617715679964,1.83069037,58546.0,58545.0,0.27]
[1617715680264,2.10227402,58540.0,58539.0,0.10725655]
[1617715680463,1.0,58540.0,58539.0,0.10725655]
[1617715680663,0.2424908,58545.0,58539.0,0.10725655]
[1617715680864,1.70837936,58540.0,58539.0,0.10725655]
[1617715681065,1.70837936,58540.0,58539.0,0.37725655]
[1617715681263,1.10214955,58540.0,58539.0,0.37725655]
[1617715681563,2.9006,58540.0,58539.0,0.37725655]
[1617715681764,4.3526488,58540.0,58539.0,0.37725655]
[1617715682164,5.21840494,58540.0,58539.0,0.37725655]
[1617715682363,6.21840494,58540.0,58539.0,0.37725655]
[1617715684067,5.71640068,58540.0,58539.0,0.37725655]
[1617715685367,4.71640068,58540.0,58539.0,0.37725655]
[1617715686872,5.71640068,58540.0,58539.0,0.37725655]
[1617715693580,2.81580068,58540.0,58539.0,0.37725655]
[1617715694185,2.4520488,58540.0,58539.0,0.37725655]
[1617715694781,1.4520488,58540.0,58539.0,0.37725655]
[1617715694980,2.4520488,58540.0,58539.0,0.37725655]
[1617715696182,2.95272626,58540.0,58539.0,0.37725655]
[1617715696984,2.4520488,58540.0,58539.0,0.37725655]
[1617715698082,3.9520488,58540.0,58539.0,0.37725655]
[1617715698482,4.31583304,58540.0,58539.0,0.37725655]
[1617715698682,1.81583304,58540.0,58539.0,0.37725655]
[1617715698981,5.28193304,58540.0,58539.0,0.37725655]
[1617715699184,2.81583304,58540.0,58539.0,0.37725655]
[1617715699383,1.4520488,58540.0,58539.0,0.37725655]
[1617715699682,2.4520488,58540.0,58539.0,0.37725655]
[1617715700984,2.4265488,58540.0,58539.0,0.37725655]
[1617715708393,2.92611813,58540.0,58539.0,0.37725655]
[1617715711396,2.4265488,58540.0,58539.0,0.37725655]
[1617715711610,1.4265488,58540.0,58539.0,0.37725655]
[1617715711803,1.34479225,58540.0,58539.0,0.37725655]
[1617715712699,2.34479225,58540.0,58539.0,0.37725655]
[1617715712899,2.10229135,58540.0,58539.0,0.37725655]
[1617715713410,1.34480303,58540.0,58539.0,0.37725655]
[1617715714103,1.10229135,58540.0,58539.0,0.37725655]
[1617715714703,4.23069135,58540.0,58539.0,0.37725655]
[1617715715505,4.8369478,58540.0,58539.0,0.37725655]
[1617715716604,5.8369478,58540.0,58539.0,0.37725655]
[1617715716909,5.9898578,58540.0,58539.0,0.37725655]
[1617715717115,2.8614578,58540.0,58539.0,0.37725655]
[1617715717304,1.8614578,58540.0,58539.0,0.37725655]
[1617715717706,1.49770393,58540.0,58539.0,0.37725655]
[1617715717904,1.34479393,58540.0,58539.0,0.37725655]
[1617715718205,2.34479393,58540.0,58539.0,0.37725655]
[1617715718407,6.02819393,58540.0,58539.0,0.37725655]
[1617715719204,5.39197852,58540.0,58539.0,0.37725655]
[1617715720107,1.70857852,58540.0,58539.0,0.37725655]
[1617715720508,1.60330262,58540.0,58539.0,0.37725655]
[1617715721809,5.26021685,58540.0,58539.0,0.37725655]
[1617715722311,5.6239794,58540.0,58539.0,0.37725655]
[1617715728518,5.12296813,58540.0,58539.0,0.37725655]
[1617715730024,5.62401148,58540.0,58539.0,0.37725655]
[1617715730820,2.20961148,58540.0,58539.0,0.37725655]
[1617715731320,1.6033347,58540.0,58539.0,0.37725655]
[1617715731620,1.84583432,58540.0,58539.0,0.37725655]
[1617715732122,1.6033347,58540.0,58539.0,0.37725655]
[1617715732523,1.6033347,58540.0,58539.0,0.67996072]
[1617715733622,1.6033347,58540.0,58539.0,0.37725655]
[1617715734122,1.6033347,58540.0,58539.0,0.67996175]
[1617715734524,1.6033347,58540.0,58539.0,0.37725655]
[1617715735428,1.6033347,58540.0,58539.0,0.67995492]
[1617715736425,4.2303347,58540.0,58539.0,0.67995492]
[1617715736826,4.83523297,58540.0,58539.0,0.67995492]
[1617715738929,2.20823297,58540.0,58539.0,0.67995492]
[1617715739530,1.6033347,58540.0,58539.0,0.67995492]
[1617715740130,1.6033347,58540.0,58539.0,0.37725655]
[1617715741130,1.6033347,58540.0,58539.0,0.67995282]
[1617715744332,1.6033347,58540.0,58539.0,0.37725655]
[1617715748840,1.6033347,58540.0,58539.0,0.67998226]
[1617715750643,1.6033347,58540.0,58539.0,0.83889226]
[1617715752246,1.6033347,58540.0,58539.0,3.81979226]
[1617715752447,1.10229135,58540.0,58539.0,4.18304396]
[1617715752846,1.10229135,58540.0,58539.0,4.38304396]
[1617715753347,1.10229135,58540.0,58539.0,1.40214396]
[1617715753648,1.10229135,58540.0,58539.0,2.90214396]
[1617715753849,1.03409135,58540.0,58539.0,6.40914396]
[1617715754248,0.59319485,58540.0,58539.0,6.94399246]
[1617715755250,0.83565173,58540.0,58539.0,6.94399246]
[1617715755450,0.81035173,58540.0,58539.0,6.94399246]
[1617715755650,0.56789485,58540.0,58539.0,6.94399246]
[1617715756953,0.27564313,58540.0,58539.0,7.44842765]
[1617715757757,0.0050778,58540.0,58539.0,6.94399246]
[1617715758356,3.384e-05,58541.0,58540.0,0.0506]
[1617715758657,0.438166,58551.0,58540.0,2.7506]
[1617715758957,0.438166,58551.0,58540.0,2.97]
[1617715759159,0.43828707,58553.0,58549.0,1.0]
[1617715759358,0.43828707,58553.0,58550.0,0.2]
[1617715759560,0.43828707,58553.0,58550.0,1.47]
[1617715759760,0.43835921,58554.0,58552.0,1.0]
[1617715759960,0.43835921,58554.0,58552.0,1.10259]
[1617715760161,0.453,58555.0,58553.0,1.37725655]
[1617715760659,0.453,58555.0,58554.0,1.0]
[1617715760860,0.453,58555.0,58554.0,1.2]
[1617715761160,0.453,58555.0,58554.0,1.47]
[1617715761760,0.453,58555.0,58554.0,1.27]
[1617715762963,0.89131004,58555.0,58554.0,1.27]
[1617715763362,0.453,58555.0,58554.0,1.27]
[1617715765165,0.453,58555.0,58554.0,1.47]
[1617715765768,0.3806,58555.0,58554.0,1.47]
[1617715768572,0.43854273,58559.0,58554.0,1.97]
[1617715768972,0.43854273,58559.0,58558.0,1.0]
[1617715769174,1.0,58602.0,58558.0,1.0]
[1617715769175,0.43882633,58562.0,58558.0,2.7]
[1617715769475,0.43962561,58572.0,58558.0,3.91622128]
[1617715769774,0.43962561,58572.0,58567.0,3.6233]
[1617715769973,0.43781647,58583.0,58568.0,1.7]
[1617715770173,0.43781647,58583.0,58582.0,0.10725655]
[1617715770374,0.43781647,58583.0,58582.0,0.46004655]
[1617715770575,0.43812037,58587.0,58582.0,1.73004655]
[1617715770776,0.43812037,58587.0,58582.0,0.73004655]
[1617715770975,0.43835121,58589.0,58582.0,0.73004655]
[1617715771375,0.43835121,58589.0,58582.0,0.37725655]
[1617715771979,0.43846965,58590.0,58582.0,0.37725655]
[1617715772176,0.43846965,58590.0,58589.0,0.10725655]
[1617715772377,3.5504,58591.0,58589.0,0.10725655]
[1617715772577,3.5504,58591.0,58589.0,0.37725655]
[1617715772778,0.78413953,58590.0,58589.0,0.37725655]
[1617715774679,0.78413953,58590.0,58589.0,3.73015655]
[1617715774878,0.43840765,58590.0,58589.0,3.73015655]
[1617715775182,0.99739597,58593.0,58589.0,3.73015655]
[1617715775380,0.43788772,58590.0,58589.0,3.73015655]
[1617715776178,0.43788772,58590.0,58589.0,0.37725655]
[1617715776384,0.93525624,58590.0,58589.0,0.37725655]
[1617715776580,4.56625624,58590.0,58589.0,0.37725655]
[1617715777382,4.9145827,58590.0,58589.0,0.37725655]
[1617715778186,4.9145827,58590.0,58589.0,0.37624658]
[1617715778882,1.2835827,58590.0,58589.0,0.37624658]
[1617715779584,0.93525624,58590.0,58589.0,0.37624658]
[1617715779887,4.59075624,58590.0,58589.0,0.37624658]
[1617715780485,5.93022752,58590.0,58589.0,0.37624658]
[1617715780885,6.28761016,58590.0,58589.0,0.37624658]
[1617715787198,6.5853872,58590.0,58589.0,0.37624658]
[1617715787798,6.14749948,58590.0,58589.0,0.37624658]
[1617715787997,6.5839358,58590.0,58589.0,0.37624658]
[1617715789699,5.5839358,58590.0,58589.0,0.37624658]
[1617715789899,1.9284358,58590.0,58589.0,0.37624658]
[1617715790199,1.9284358,58590.0,58589.0,0.37523659]
[1617715790401,2.58896452,58590.0,58589.0,0.37523659]
[1617715790700,2.83135994,58590.0,58589.0,0.37523659]
[1617715796806,5.40775994,58590.0,58589.0,0.37523659]
[1617715797208,5.73459463,58590.0,58589.0,0.37523659]
[1617715798508,3.15819463,58590.0,58589.0,0.37523659]
[1617715799110,2.83135994,58590.0,58589.0,0.37523659]
[1617715799510,2.17780556,58590.0,58589.0,0.37523659]
[1617715799710,3.17780556,58590.0,58589.0,0.37523659]
[1617715800412,3.17780556,58590.0,58589.0,0.37422661]
[1617715800812,2.17780556,58590.0,58589.0,0.37422661]
[1617715801312,3.17780556,58590.0,58589.0,0.37422661]
[1617715803612,3.30494556,58590.0,58589.0,0.37422661]
[1617715804912,3.17780556,58590.0,58589.0,0.37422661]
[1617715805914,3.17780556,58590.0,58589.0,0.42512661]
[1617715806113,3.73487639,58590.0,58589.0,0.42512661]
[1617715808119,3.73487639,58590.0,58589.0,0.37422661]
[1617715808321,3.84928639,58590.0,58589.0,0.37422661]
[1617715808721,4.32119611,58590.0,58589.0,0.37422661]
[1617715810425,7.56069611,58590.0,58589.0,0.37422661]
[1617715813726,7.56069611,58590.0,58589.0,0.37321656]
[1617715814526,9.06069611,58590.0,58589.0,0.37321656]
[1617715814726,9.06069611,58590.0,58589.0,0.27]
[1617715815127,9.06069611,58590.0,58563.0,0.27]
[1617715815325,9.06069611,58590.0,58589.0,0.27]
[1617715815527,9.75685753,58590.0,58589.0,0.27]
[1617715815725,1.09685,58569.0,58561.0,0.27]
[1617715815926,1.09685,58569.0,58560.0,0.1281]
[1617715816326,1.09685,58569.0,58561.0,0.3215]
[1617715816527,1.09685,58569.0,58561.0,0.27]
[1617715816528,0.10725655,58562.0,58561.0,0.27]
[1617715816826,1.78087831,58562.0,58561.0,0.27]
[1617715817629,2.27840735,58562.0,58561.0,3.362]
[1617715818128,2.27840735,58562.0,58561.0,3.3113]
[1617715818129,1.44289793,58562.0,58561.0,3.3113]
[1617715818528,1.44289793,58562.0,58561.0,3.41855655]
[1617715818732,1.44289793,58562.0,58561.0,0.37725655]
[1617715820932,1.94033143,58562.0,58561.0,0.37725655]
[1617715821531,1.94033143,58562.0,58561.0,3.79245655]
[1617715825541,1.44289793,58562.0,58561.0,3.79245655]
[1617715826440,1.44289793,58562.0,58561.0,0.37725655]
[1617715827140,5.27540793,58562.0,58561.0,0.37725655]
[1617715827540,6.10151345,58562.0,58561.0,0.37725655]
[1617715827739,6.10151345,58562.0,58561.0,0.27]
[1617715828340,6.10151345,58562.0,58551.0,0.27]
[1617715828541,0.10725655,58552.0,58551.0,0.10725655]
[1617715829141,1.44276505,58552.0,58551.0,0.37725655]
[1617715829542,2.20026135,58552.0,58551.0,0.37725655]
[1617715829843,2.44276587,58552.0,58551.0,0.37725655]
[1617715830951,2.44276587,58552.0,58551.0,0.27]
[1617715831156,3.94276587,58552.0,58551.0,0.27]
[1617715831355,4.43920981,58552.0,58543.0,0.27]
[1617715831645,4.76788825,58552.0,58551.0,0.27]
[1617715831843,7.05378825,58552.0,58535.0,0.27]
[1617715832042,6.55378825,58552.0,58535.0,0.27]
[1617715832259,6.55378825,58552.0,58533.0,0.27]
[1617715832458,1.0,58546.0,58536.0,0.27]
[1617715832656,1.0,58546.0,58544.0,0.10725655]
[1617715833044,1.0,58546.0,58545.0,0.27]
[1617715833444,0.49601987,58548.0,58545.0,0.27]
[1617715833648,1.0,58546.0,58545.0,0.27]
[1617715833945,2.09159403,58546.0,58545.0,0.27]
[1617715834645,2.19885058,58546.0,58545.0,0.27]
[1617715834847,2.44136491,58546.0,58545.0,0.27]
[1617715839053,2.93727705,58546.0,58545.0,0.27]
[1617715839455,2.44136491,58546.0,58545.0,0.27]
[1617715840653,6.09956491,58546.0,58545.0,0.27]
[1617715841054,2.76681383,58546.0,58545.0,0.27]
[1617715841554,2.44136491,58546.0,58545.0,0.27]
[1617715847761,1.34977088,58546.0,58545.0,0.27]
[1617715847964,2.76845914,58546.0,58545.0,0.27]
[1617715848163,2.52594481,58546.0,58545.0,0.27]
[1617715848465,2.19908724,58546.0,58545.0,0.27]
[1617715852669,2.69597429,58546.0,58545.0,0.27]
[1617715852970,2.19908724,58546.0,58545.0,0.27]
[1617715856370,5.15358724,58546.0,58545.0,0.27]
[1617715856871,5.48079227,58546.0,58545.0,0.27]
[1617715857772,5.48079227,58546.0,58545.0,0.47]
[1617715858473,2.52629227,58546.0,58545.0,0.47]
[1617715859073,2.19908724,58546.0,58545.0,0.47]
[1617715862080,2.69612311,58546.0,58545.0,0.47]
[1617715863481,1.69612311,58546.0,58545.0,0.47]
[1617715863682,2.69612311,58546.0,58545.0,0.47]
[1617715864382,2.93868936,58546.0,58545.0,0.46898931]
[1617715865082,6.40378936,58546.0,58545.0,0.46898931]
[1617715865584,7.18720102,58546.0,58545.0,0.46898931]
[1617715866085,7.74541836,58546.0,58545.0,0.46898931]
[1617715866484,6.73063381,58546.0,58545.0,0.46898931]
[1617715866986,7.18853713,58546.0,58545.0,0.46898931]
[1617715868286,3.72343713,58546.0,58545.0,0.46898931]
[1617715868485,3.72343713,58546.0,58545.0,4.09998931]
[1617715868985,2.93868936,58546.0,58545.0,4.09998931]
[1617715869285,6.15808936,58546.0,58545.0,0.46898931]
[1617715869890,6.94379913,58546.0,58545.0,0.46898931]
[1617715872494,5.94379913,58546.0,58545.0,0.46898931]
[1617715872693,6.94379913,58546.0,58545.0,0.46898931]
[1617715877200,7.50269997,58546.0,58545.0,0.46898931]
[1617715877603,7.50269997,58546.0,58545.0,0.46797861]
[1617715879603,9.00269997,58546.0,58545.0,0.46797861]
[1617715880205,7.50269997,58546.0,58545.0,0.46797861]
[1617715887712,7.50269997,58546.0,58545.0,0.46696791]
[1617715889214,6.50269997,58546.0,58545.0,0.46696791]
[1617715889615,7.50269997,58546.0,58545.0,0.46696791]
[1617715889815,3.82540502,58546.0,58545.0,0.46696791]
[1617715890015,3.82540502,58546.0,58545.0,4.00106791]
[1617715890217,3.4975902,58546.0,58545.0,4.00106791]
[1617715891416,2.4975902,58546.0,58545.0,4.00106791]
[1617715891616,3.4975902,58546.0,58545.0,4.00106791]
[1617715892219,3.4975902,58546.0,58545.0,0.46696791]
[1617715892424,6.0884902,58546.0,58545.0,0.46696791]
[1617715893225,6.42426752,58546.0,58545.0,0.46696791]
[1617715896230,7.59347689,58546.0,58545.0,0.46696791]
[1617715896630,7.12568004,58546.0,58545.0,0.46696791]
[1617715898636,6.42426752,58546.0,58545.0,0.46696791]
[1617715899335,6.42426752,58546.0,58545.0,0.46595719]
[1617715899936,7.12600527,58546.0,58545.0,0.46595719]
[1617715900635,6.12600527,58546.0,58545.0,0.46595719]
[1617715900839,5.42426752,58546.0,58545.0,0.46595719]
[1617715901138,6.42426752,58546.0,58545.0,0.46595719]
[1617715902738,7.92426752,58546.0,58545.0,0.46595719]
[1617715903740,9.04757551,58546.0,58545.0,0.46595719]
[1617715907342,9.04757551,58546.0,58545.0,0.2]
[1617715908055,5.89998066,58546.0,58545.0,0.2]
[1617715908446,6.46080441,58546.0,58545.0,0.2]
[1617715908751,8.06327243,58546.0,58545.0,0.2]
[1617715909446,8.48792981,58546.0,58545.0,0.2]
[1617715909645,8.68792981,58546.0,58545.0,0.2]
[1617715909846,9.56912699,58546.0,58545.0,0.2]
[1617715910247,9.56912699,58546.0,58545.0,0.19898915]
[1617715913556,10.14458852,58546.0,58545.0,0.19898915]
[1617715913758,15.14458852,58546.0,58545.0,0.19898915]
[1617715914559,16.14983464,58546.0,58545.0,0.19898915]
[1617715915359,15.14458852,58546.0,58545.0,0.19898915]
[1617715915860,16.19935252,58546.0,58545.0,0.14843758]
[1617715917062,16.19935252,58546.0,58545.0,0.05713758]
[1617715917263,16.19935252,58546.0,58510.0,0.10725655]
[1617715917563,4.9975,58539.0,58510.0,0.10725655]